Cogmind - Beta 11.1 @@@ ROGUE MODE // 2022.05.15 @ 14:38:41 Player: ChromeKnight Result: Destroyed by G-34 Mercenary with Backup Laser I Performance ------------- Evolutions (1) 500 Regions Visited (3) 600 Robots Destroyed (51) 255 Value Destroyed (1067) 1067 Prototype IDs (1) 20 Alien Tech Used (0) 0 Bonus (0) 0 TOTAL SCORE: 2442 Bonus ------- None Cogmind --------- Core Integrity 0/400 Matter 300/300 Energy 250/250 System Corruption 7% Temperature Cool (9) Movement Treading (160) Location -9/Materials Parts ------- > --- POWER (1) -------- Ion Engine > --- PROPULSION (2) --- Light Treads Light Treads > --- UTILITY (4) ------ Large Storage Unit Visual Processing Unit > --- WEAPON (2) ------- Improved Assault Rifle Katana > --- INVENTORY (15) --- Aluminum Leg Flight Unit Flight Unit Flight Unit Seismic Detector Hacking Suite Improved Assault Rifle Improved Assault Rifle Improved Assault Rifle Mining Claw Mining Claw Peak State ------------ > --- POWER ------------ (None) > --- PROPULSION ------- Aluminum Leg Aluminum Leg > --- UTILITY ---------- Large Storage Unit Visual Processing Unit Light Armor Plating > --- WEAPON ----------- Improved Assault Rifle Katana > --- INVENTORY -------- Ion Engine Aluminum Leg Flight Unit Flight Unit Flight Unit Seismic Detector Hacking Suite Improved Assault Rifle Improved Assault Rifle Improved Assault Rifle Mining Claw Mining Claw [Rating: 14] Favorites ----------- Power Ion Engine Engine Ion Engine Propulsion Light Treads Treads Light Treads Leg Aluminum Leg Utility Large Storage Unit Device Seismic Detector Storage Large Storage Unit Processor Visual Processing Unit Protection Light Armor Plating Weapon Spread Laser Energy Gun Spread Laser Ballistic Gun Improved Assault Rifle Slashing Weapon Katana Build | -11 -10 -10 -9 ------- Run | Scr Mat Min Mat Slots Evolved 2 | . . . 2 Power . | . . . . Propulsion . | . . . . Utility 2 | . . . 2 Weapon . | . . . . Parts Attached 38 | 7 7 5 19 Power 6 | 1 2 1 2 Engine 6 | 1 2 1 2 Core . | . . . . Reactor . | . . . . Propulsion 13 | 2 2 2 7 Treads 11 | 2 2 2 5 Leg 2 | . . . 2 Wheel . | . . . . Hover . | . . . . Flight . | . . . . Utility 6 | 2 1 . 3 Device 1 | 1 . . . Storage 2 | 1 1 . . Processor 2 | . . . 2 Hackware . | . . . . Protection 1 | . . . 1 Artifact . | . . . . Weapon 13 | 2 2 2 7 Energy Gun 4 | . 2 2 . Energy Cannon . | . . . . Ballistic Gun 6 | 2 . . 4 Ballistic Cannon . | . . . . Launcher . | . . . . Special Weapon . | . . . . Impact Weapon . | . . . . Slashing Weapon 3 | . . . 3 Piercing Weapon . | . . . . Special Melee Weapon . | . . . . Unidentified Prototypes 1 | . . . 1 Parts Lost 16 | . . 5 11 Power 3 | . . 1 2 Propulsion 5 | . . 2 3 Utility 3 | . . . 3 Weapon 5 | . . 2 3 Highest Loss Streak 7 | . . 5 7 To Critical Strikes . | . . . . Average Slot Usage (%) 86 | . 100 97 69 Engine 10 | . 14 13 5 Treads 21 | . 28 25 11 Leg 2 | . . . 6 Device 9 | . 14 14 2 Storage 12 | . 14 14 11 Processor 2 | . . . 5 Protection 2 | . . . 5 Energy Gun 17 | . 26 27 4 Ballistic Gun 3 | . 1 . 7 Slashing Weapon 3 | . . . 9 Naked Turns . | . . . . Heaviest Build 33 | 14 32 30 33 Greatest Support 40 | 40 40 40 40 Greatest Overweight (x) 9 | . . 9 9 Average Overweight (x) . | . . . . Largest Inventory Capacity 15 | 8 15 15 15 Average Capacity 13 | 7 13 15 15 Most Carried 15 | 2 15 15 13 Average Carried 10 | . 10 12 10 Final Capacity 15 | 8 15 15 15 Final Carried 15 | 2 15 10 11 Class Distribution -------------------- 77% | Mutant 22% | Scavenger-Mutant Dominant Class ---------------- Mutant | -10/Materials Mutant | -10/Mines Scavenger-Mutant | -9/Materials Resources | -11 -10 -10 -9 ----------- Run | Scr Mat Min Mat Matter Collected 712 | 302 64 56 290 Remotely . | . . . . Salvage Created 1477 | 149 422 61 845 Parts 95 | 4 41 2 48 Haulers Intercepted 2 | . 1 . 1 Recyclers Shooed 1 | . 1 . . Parts Field Recycled . | . . . . Retrieved Matter . | . . . . Parts Self-Destructed . | . . . . Prevented . | . . . . Kills | -11 -10 -10 -9 ------- Run | Scr Mat Min Mat Combat Hostiles Destroyed 41 | . 14 10 17 Melee 15 | . . 1 14 Guns 26 | . 14 9 3 Classes Destroyed 12 | 2 6 1 3 Worker 4 | . 3 . 1 Tunneler 4 | 2 . 1 1 Hauler 2 | . 1 . 1 Recycler 2 | 1 1 . . Operator 2 | . 1 . 1 Watcher 3 | . 2 . 1 Swarmer 12 | . 9 3 . Grunt 17 | . 5 . 12 Brawler 1 | . . . 1 Duelist 1 | . . . 1 Sentry 3 | . . . 3 Assembled 7 | . . 7 . Best Kill Streak 7 | 2 4 7 4 Combat Bots Only 7 | . 3 7 4 Max Kills in Single Turn 2 | 1 1 2 1 Gunslinging 1 | . . 1 . Exploded . | . . . . Melee 1 | . . 1 1 Uniques/NPCs Destroyed . | . . . . Combat | -11 -10 -10 -9 -------- Run | Scr Mat Min Mat Damage Taken 2372 | . 374 799 1199 Core 630 | . 89 133 408 Absorbed by Shields . | . . . . Core Remaining (%) 55 | 100 . 11 . Volleys Fired 81 | 8 36 17 20 Largest 2 | 2 2 2 2 Hottest 130 | 40 130 130 130 Shots Fired 147 | 16 72 34 25 Gun 147 | 16 72 34 25 Cannon . | . . . . Launcher . | . . . . Special . | . . . . Kinetic 30 | 16 2 . 12 Thermal 117 | . 70 34 13 Explosive . | . . . . Electromagnetic . | . . . . Robot Hit Streak 12 | 5 11 10 12 Robot Miss Streak 8 | 1 8 7 4 Penetration Max . | . . . . Secondary Targets 3 | . . 3 . Max Gunslinging Chain 1 | . . 1 . Shots Hit Robots 157 | 11 64 31 51 Core Hits 158 | 4 81 43 30 Critical Kills . | . . . . Critical Parts Destroyed . | . . . . Critical Strikes 1 | . . . 1 Sever 1 | . . . 1 Melee Attacks 41 | . . . 41 Impact . | . . . . Slashing 41 | . . . 41 Piercing . | . . . . Sneak Attacks 3 | . . . 3 Combat Hostiles . | . . . . Follow-up Attacks . | . . . . Damage Inflicted 2697 | 122 808 423 1344 Guns 1583 | 122 751 419 291 Cannons . | . . . . Explosions 57 | . 57 . . Melee 1053 | . . . 1053 Ramming 4 | . . 4 . Kinetic 273 | 122 10 . 141 Thermal 1335 | . 766 419 150 Explosive . | . . . . Electromagnetic 32 | . 32 . . Impact . | . . . . Slashing 1053 | . . . 1053 Piercing . | . . . . Highest Corruption 7 | . . . 7 Average Corruption 6 | . . . 6 Corruption Purged . | . . . . Corruption Blocked . | . . . . Effects 29 | . . . 29 Message Errors 7 | . . . 7 Matter Fused 5 | . . . 5 Heat Flow Errors 5 | . . . 5 Energy Discharges 5 | . . . 5 Parts Rejected 1 | . . . 1 Data Loss (minor) 3 | . . . 3 Data Loss (major) 3 | . . . 3 Overload Shots . | . . . . Overflow Damage 78 | . . . 78 Projectiles . | . . . . Explosions . | . . . . Melee 78 | . . . 78 Knockbacks . | . . . . Impact . | . . . . Kinetic . | . . . . Secondary . | . . . . Self-Inflicted Damage 57 | . 57 . . Shots 2 | . 2 . . Rammed 1 | . . 1 . Targets Rammed 1 | . . 1 . Kicked . | . . . . Crushed . | . . . . Highest Temperature 549 | . 453 498 549 Average Temperature 176 | . 122 221 265 Received Heat Transfer 486 | . 66 120 300 Effects 23 | . 2 4 17 Shutdowns 6 | . 1 3 2 Energy Bleed 4 | . 1 1 2 Matter Decay 1 | . . . 1 Short Circuit 1 | . . . 1 Damage (minor) 1 | . . . 1 Damage (major) 8 | . . . 8 Damage (core) 2 | . . . 2 Siege Activations . | . . . . Robots Corrupted . | . . . . Combat Hostiles . | . . . . Parts Fried . | . . . . Impact Corruptions . | . . . . Robots Melted . | . . . . Combat Hostiles . | . . . . Parts Melted . | . . . . Heat Transferred 1695 | . 1000 520 175 Parts Sabotaged . | . . . . Parts Stolen . | . . . . Parts Stripped . | . . . . Power Chain Reactions 1 | . 1 . . Missiles Intercepted . | . . . . Alert | -11 -10 -10 -9 ------- Run | Scr Mat Min Mat Peak Influence 217 | 15 189 141 217 Initial 56 | . 9 56 37 Average 75 | 6 81 108 67 Maximum Alert Level 1 | . . . 1 Low Security (%) 99 | 100 100 100 97 Level 1 . | . . . 2 Level 2 . | . . . . Level 3 . | . . . . Level 4 . | . . . . Level 5 . | . . . . High Security . | . . . . Max Security . | . . . . Squads Dispatched 4 | . 3 . 1 Investigation 2 | . 2 . . Extermination . | . . . . Reinforcement 2 | . 1 . 1 Assault . | . . . . Garrison . | . . . . Intercept . | . . . . Searches Triggered . | . . . . Construction Impeded . | . . . . Haulers Reinforced . | . . . . Active Scanning Responses . | . . . . Cargo Convoy Interrupts . | . . . . Stealth | -11 -10 -10 -9 --------- Run | Scr Mat Min Mat Distress Signals 5 | . 2 . 3 Communications Jammed . | . . . . Distress Signals . | . . . . Times Spotted 60 | . 21 16 23 Peak Tracking Total 15 | . 4 15 5 Tactical Retreats 3 | . . 2 1 Traps | -11 -10 -10 -9 ------- Run | Scr Mat Min Mat Traps Triggered 4 | . 2 . 2 Indirectly . | . . . . Trap Hack Attempts . | . . . . Triggered . | . . . . Disarmed . | . . . . Reprogrammed . | . . . . Reused . | . . . . Traps Extracted . | . . . . Installed . | . . . . Triggered . | . . . . Machines | -11 -10 -10 -9 ---------- Run | Scr Mat Min Mat Machines Disabled 1 | . 1 . . Max in Single Turn 1 | . 1 . . Machines Sabotaged . | . . . . Garrisons Compromised . | . . . . Overloaded Fab Kills . | . . . . Hacking | -11 -10 -10 -9 --------- Run | Scr Mat Min Mat Machines Accessed 4 | . 1 . 3 Terminals 4 | . 1 . 3 Fabricators . | . . . . Repair Stations . | . . . . Recycling Units . | . . . . Scanalyzers . | . . . . Garrison Access . | . . . . Total Hacks 15 | . 7 . 8 Successful 7 | . 3 . 4 Failed 8 | . 4 . 4 Catastrophic 2 | . 1 . 1 Database Lockouts . | . . . . Manual 13 | . 7 . 6 Terminals 15 | . 7 . 8 Fabricators . | . . . . Repair Stations . | . . . . Recycling Units . | . . . . Scanalyzers . | . . . . Garrison Access . | . . . . Terminal Hacks 1 | . . . 1 Alert Level 1 | . . . 1 Fabricator Hacks . | . . . . Repair Station Hacks . | . . . . Recycling Unit Hacks . | . . . . Scanalyzer . | . . . . Garrison Access Hacks . | . . . . Unauthorized Hacks 6 | . 3 . 3 Terminals 6 | . 3 . 3 Track 1 | . 1 . . Botnet 3 | . 1 . 2 Operators 2 | . 1 . 1 Fabricators . | . . . . Repair Stations . | . . . . Recycling Units . | . . . . Scanalyzers . | . . . . Garrison Access . | . . . . Data Cores Recovered . | . . . . Used . | . . . . Hacking Detections 4 | . 1 . 3 Full Trace Events . | . . . . Feedback Events . | . . . . Feedback Blocked . | . . . . Robot Schematics Acquired . | . . . . Robots Built . | . . . . Authchips . | . . . . Time . | . . . . Total Robot Build Rating . | . . . . Part Schematics Acquired . | . . . . Parts Built . | . . . . Authchips . | . . . . Time . | . . . . Total Part Build Rating . | . . . . Parts Repaired . | . . . . Time . | . . . . Parts Recycled . | . . . . Recycled Matter . | . . . . Retrieved Matter . | . . . . Retrieved Components . | . . . . Parts Scanalyzed . | . . . . Part Schematics Acquired . | . . . . Parts Damaged . | . . . . Bothacking | -11 -10 -10 -9 ------------ Run | Scr Mat Min Mat Used RIF Installer . | . . . . Robots Hacked . | . . . . Non-combat . | . . . . Combat . | . . . . Robot Hacks Applied . | . . . . Relay Couplers Released . | . . . . Fabnet Peak Effective % . | . . . . Robots Rewired . | . . . . Allies Hacked . | . . . . Hacks Repelled . | . . . . Allies | -11 -10 -10 -9 -------- Run | Scr Mat Min Mat Total Allies . | . . . . Largest Group . | . . . . Highest-Rated Group . | . . . . Highest-Rated Ally . | . . . . Total Orders . | . . . . Ally Attacks . | . . . . Total Damage . | . . . . Kills . | . . . . Allies Corrupted . | . . . . Allies Melted . | . . . . Intel | -11 -10 -10 -9 ------- Run | Scr Mat Min Mat Robot Analysis Total . | . . . . Derelict Logs Recovered 1 | . . 1 . Drone Launches . | . . . . Drone Recoveries . | . . . . Exploration | -11 -10 -10 -9 ------------- Run | Scr Mat Min Mat Turns Passed 2547 | 131 1076 333 1007 Spaces Moved 1076 | 62 449 166 399 Core 24 | 2 . 2 20 Treads 923 | 60 449 164 250 Legs 129 | . . . 129 Wheels . | . . . . Hover . | . . . . Flight . | . . . . Fastest Speed 50 | 50 160 160 160 Average Speed 170 | 156 160 164 187 Slowest Speed 500 | 160 160 500 500 Overloaded Moves . | . . . . Propulsion Burnouts . | . . . . Robots Hopped . | . . . . Cave-ins Triggered . | . . . . Exploration Rate (%) 38 | 4 63 55 33 Regions Visited 3 Branch Regions 1 Pre-discovered Areas 1 | . . 1 . Known Exits Taken . | . . . . Unknown Exits Taken 3 | 1 1 1 . Scrap Searched 1 | . . 1 . Spaces Dug . | . . . . Terrain Destroyed 2 | . 2 . . Melee . | . . . . Projectile . | . . . . AOE 2 | . 2 . . Terrain Rammed . | . . . . Walls Destroyed . | . . . . Machines Disabled . | . . . . Actions | -11 -10 -10 -9 --------- Run | Scr Mat Min Mat Total 1583 | 78 741 192 572 Wait 309 | . 226 4 79 Move 1073 | 61 448 165 399 Hop . | . . . . Pick Up 26 | 2 15 . 9 Fast Attach 21 | 7 2 . 12 Attach 12 | . . 5 7 Detach . | . . . . Swap 5 | . 5 . . Drop 15 | . 9 . 6 Fire 81 | 8 36 17 20 Melee 40 | . . . 40 Ram . | . . . . Kick . | . . . . Crush 1 | . . 1 . Escape Stasis . | . . . . Rewire . | . . . . Trap . | . . . . Miscellaneous . | . . . . Route ------- -11/Scrapyard -10/Materials (discovered 3 exits: *Mat x2 / [*Min]) -10/Mines -9/Materials (discovered 2 exits: [*Mat] / [*Sto]) History --------- Turn | Location | Event 30 | -11/Scrapyard | Discovered new exit (range 15) 132 | -11/Scrapyard | Entered Materials 302 | -10/Materials | Build established: Mutant 860 | -10/Materials | Discovered new exit (range 15) 962 | -10/Materials | Discovered new exit (range 15) 1190 | -10/Materials | Discovered new exit (range 12) 1208 | -10/Materials | Entered Mines 1334 | -10/Mines | Assembled infested the area 1339 | -10/Mines | Assisted by a Guerilla fighting off Assembled 1351 | -10/Mines | Learned location of Zion (-7) 1377 | -10/Mines | Core integrity fell below 50% 1417 | -10/Mines | Core integrity fell below 20% 1425 | -10/Mines | Lost 5 parts (1p2n2w) 1445 | -10/Mines | Destroyed 7 combat bots 1504 | -10/Mines | Discovered new exit (range 10) 1541 | -10/Mines | Entered Materials 1541 | -9/Materials | Evolved 2 slots: Utility x2 1742 | -9/Materials | Core integrity fell below 50% 1772 | -9/Materials | Lost 7 parts (2p2n1u2w) 1882 | -9/Materials | Core integrity fell below 20% 2211 | -9/Materials | Discovered new exit (range 4) 2264 | -9/Materials | Build established: Scavenger-Mutant 2341 | -9/Materials | Discovered new exit (range 12) 2548 | -9/Materials | Destroyed by G-34 Mercenary with Backup Laser I Last Messages --------------- 02401_ R-06 Scavenger collects Heat Sink. 02441_ System corrupted: Energy discharge (-90). 02447_ G-47 Trooper destroyed. 02451_ G-34 Mercenary destroyed. 02463_ System corrupted: Component data lost. 02486_ Q9|P:5>Trojan(Operators) Trojan loaded successfully. Testing... Operator tracking enabled and active. >>Trojan(Botnet) Trojan loaded successfully. Testing... Terminal linked with 1 system. Awaiting botnet instructions. 02512_ System corrupted: Heat flow error (+126). 02520_ G-34 Mercenary Sml. Laser severed. 02528_ PCKGRY|& 02530_ G-34 Mercenary destroyed. Map ----- +----------------------------------------------------+ | ?????????????????????????????????????????????????? | | ?????????????????????????????????????????????o???? | | ?????????????????????????????????????????????????? | | ?????????????????????????????????????????????????? | | ?????????????????????????????????????????????????? | | ?????????????????????????????????????????????????? | | ?????????????????????????????????????????????????? | | ?????????????????????????????????????????????????? | | ?????????????????????????????????????????????????? | | ?????????????????????????????????????????????????? | | ?????????????????????????????????????????????????? | | ?????????????????????????????????????????????????? | | ?????????????????????????????????????????????????? | | ?????????????????????????????????????????????????? | | ?????????????????????????????????????????????????? | | ?????????????????????????????????????????????????? | | ????????????????????????????????????? #??????????? | | ??????????????????????????????????? #??????????? | | ????????????????????????########## #??????????? | | ??????????????????####### #??????????? | | ??????????????????# # ^ #??????????? | | ??????????????????# """=#[ #??????????? | | ??????????????????# """[+%a #??????????? | | ??????????????????# """ #!##### #??????????? | | ??????????????????# # #???# ????????????????? | | ??????????????????# #@#???# ???????????????#? | | ??????????????????# #g#???# #???????????????# | | ??????????????????#######m#???# #??????????????## | | ???????????????????# #???# #??????????????# | | ???????????????????# #???# #?###+######???# | | ?????????? o # ##### ### #???# | | ???????????????# + k + + """"" #???# | | ???????????????# # "T" #####+### """"" #???#?? | | ???????????????????# """ #?? # """"" #?????? | | ???????????????????#########""" # """"" #?????? | | ???????????????????????????#""" # """"" #???? | | ???????????????????????????#""" # """"" #???? | | ??????????????????????? ???# # """"" #???# | | ??????????????????????# ??# # #??? | | ??????????????????????# #############+####### | | ??????????????????????# # < | | ??????????????????????# = # | | ??????????????????????# [%![% # | | ??????????????????????# #######+### | | ??????????????????????# / # | | ??????????????????????##+##??#### ! # | | ????????????????????????????????# # | | ????????????????????????????????# # | | ????????????????????????????????# |!/ + | | ????????????????????????????????# |!/ # | +----------------------------------------------------+ Best States ------------- Heat Dissipation 28 Energy Generation 10 Energy Capacity 250 Matter Stores 300 Matter Capacity 300 Sight Range 18 Terrain Scan Density 10 Armor Coverage 150 Evasion (%) 40 Melee Accuracy 5 Recoil Reduction 2 Item Schematics ----------------- None Robot Schematics ------------------ None Fabricated ------------ Nothing Alien Tech Used ----------------- None Achievements -------------- None Challenges ------------ None Game ------ Seed TargetingIonBroadsword Manual? 0 Play Time 00:16:31 Cumulative 265.6 hours Start 2022.05.15 @ 12:57:08 End 2022.05.15 @ 14:38:41 Sessions 1 Manual Loads 0 Difficulty Rogue Special Mode None Game No. 504 Rogue 349 Adventurer 148 Explorer 7 Win Type - Total 10 Types 8/0/1/1/0/0/0/0/0 Lore% 71 Gallery% 83 Achievement% 66 Wizard Run 0 Options --------- ASCII 0 Keyboard 0 Movement Numpad Keybinds 0 Fullscreen 1 Font 18/SmallcapsGlow Map View 76x50 Tactical HUD 1 Map Filters NONE Filters NONE Steam 1 RUN: 4ad304da-6a42-4220-895a-9a8a9a4471a2